bitfinex/quotes_ETHUSD_20250814
["timestamp","ask_amount","ask_price","bid_price","bid_amount"]
[1755161358004,25.2672,4726.0,4725.9,0.07166577]
[1755161358182,26.4972,4726.0,4725.9,0.07166577]
[1755161358587,26.0627,4726.0,4725.9,0.07166577]
[1755161358983,29.80425429,4726.0,4725.9,0.07166577]
[1755161359682,31.03425429,4726.0,4725.9,0.07166577]
[1755161361109,32.26425429,4726.0,4725.9,0.07166577]
[1755161362508,33.49425429,4726.0,4725.9,0.07166577]
[1755161362900,2.11622296,4725.4,4725.3,0.001]
[1755161363194,35.92114824,4725.4,4725.3,0.001]
[1755161363414,36.37411908,4725.4,4725.3,0.001]
[1755161363894,37.60411908,4725.4,4725.3,0.001]
[1755161364417,37.15114824,4725.4,4725.3,0.001]
[1755161364795,40.60382181,4725.4,4725.3,0.001]
[1755161364994,2.1164469,4724.9,4724.8,0.001]
[1755161365193,4.10022961,4724.9,4724.8,0.001]
[1755161366243,4.2557539,4724.9,4724.8,0.001]
[1755161366821,5.4857539,4724.9,4724.8,0.001]
[1755161368198,6.7157539,4724.9,4724.8,0.001]
[1755161369427,5.1552539,4724.9,4724.8,0.001]
[1755161369600,6.3852539,4724.9,4724.8,0.001]
[1755161370028,3.69,4724.9,4724.8,0.001]
[1755161370328,6.2391469,4724.9,4724.8,0.0018]
[1755161370553,5.8064469,4724.9,4724.8,0.0018]
[1755161370723,6.39486134,4724.9,4724.8,0.0018]
[1755161370910,7.62486134,4724.9,4724.8,0.0018]
[1755161371338,8.59898369,4724.9,4724.8,0.0018]
[1755161373146,9.93458369,4724.9,4724.8,0.0018]
[1755161374337,11.16458369,4724.9,4724.8,0.0018]
[1755161375143,10.57616925,4724.9,4724.8,0.0018]
[1755161375364,9.6020469,4724.9,4724.8,0.0018]
[1755161375567,10.8320469,4724.9,4724.8,0.0018]
[1755161376664,11.2647469,4724.9,4724.8,0.0018]
[1755161377265,12.0620469,4724.9,4724.8,0.0018]
[1755161377571,13.5798881,4724.9,4724.8,0.0018]
[1755161377869,13.73945302,4724.9,4724.8,0.0018]
[1755161378841,14.96945302,4724.9,4724.8,0.0018]
[1755161379044,18.71288725,4724.9,4724.8,0.0018]
[1755161379350,14.91903423,4724.9,4724.8,1.1048]
[1755161379549,14.91903423,4724.9,4724.8,1.5056]
[1755161380448,16.14903423,4724.9,4724.8,1.5056]
[1755161380759,16.14903423,4724.9,4724.8,0.5056]
[1755161381647,17.37903423,4724.9,4724.8,0.5056]
[1755161382971,18.60903423,4724.9,4724.8,0.5056]
[1755161384474,19.83903423,4724.9,4724.8,0.5056]
[1755161385572,16.0956,4724.9,4724.8,1.06792566]
[1755161385778,17.22,4724.9,4724.8,0.5056]
[1755161386375,17.22,4724.9,4724.8,5.6220917]
[1755161387258,18.45,4724.9,4724.8,5.6220917]
[1755161388655,19.68,4724.9,4724.8,5.6220917]
[1755161389973,20.91,4724.9,4724.8,5.6220917]
[1755161390865,20.91,4724.9,4724.8,6.39605896]
[1755161391272,22.14,4724.9,4724.8,6.39605896]
[1755161391775,22.14,4724.9,4724.8,7.34495896]
[1755161392680,23.37,4724.9,4724.8,3.77396726]
[1755161392866,23.37,4724.9,4724.5,2.11658996]
[1755161393382,23.37,4724.9,4724.4,2.11767032]
[1755161393967,24.6,4724.9,4724.5,2.11662105]
[1755161394286,24.6,4724.9,4724.5,0.001]
[1755161394693,24.6,4724.9,4724.5,2.11761215]
[1755161394891,24.6,4724.9,4724.5,3.8670972]
[1755161395187,24.6,4724.9,4724.6,3.53818129]
[1755161395365,25.83,4724.9,4724.6,3.53818129]
[1755161395691,25.83,4724.9,4724.6,1.4216]
[1755161396559,25.83,4724.9,4724.7,0.1056]
[1755161396761,27.06,4724.9,4724.7,0.1056]
[1755161397158,27.06,4724.9,4724.8,2.1164917]
[1755161397379,27.06,4724.9,4724.7,2.62292819]
[1755161397584,27.06,4724.9,4724.7,2.22212819]
[1755161398185,27.06,4724.9,4724.7,0.1056]
[1755161398360,28.29,4724.9,4724.7,0.1056]
[1755161399257,28.29,4724.9,4724.7,2.22213192]
[1755161399865,28.29,4724.9,4724.8,5.1164917]
[1755161400103,29.52,4724.9,4724.8,5.1164917]
[1755161400515,29.52,4724.9,4724.8,5.2228917]
[1755161400720,29.52,4724.9,4724.8,0.1064]
[1755161401391,30.75,4724.9,4724.8,0.1064]
[1755161401588,30.75,4724.9,4724.8,2.2228917]
[1755161401825,30.75,4724.9,4724.8,7.07863826]
[1755161402783,31.98,4724.9,4724.8,7.07863826]
[1755161404213,33.21,4724.9,4724.8,7.07863826]
[1755161405506,34.44,4724.9,4724.8,7.07863826]
[1755161405708,2.462,4725.4,4724.9,5.1164469]
[1755161405913,2.462,4725.4,4725.2,5.11631253]
[1755161406125,2.462,4725.4,4725.3,4.4216]
[1755161406326,2.462,4725.4,4725.3,3.53786775]
[1755161406530,2.462,4725.4,4725.3,2.22186775]
[1755161407030,3.692,4725.4,4725.3,2.22186775]
[1755161407403,3.692,4725.4,4725.3,0.1056]
[1755161407803,3.692,4725.4,4725.3,2.22186775]
[1755161407999,3.692,4725.4,4725.3,0.1056]
[1755161408205,4.922,4725.4,4725.3,2.22186775]
[1755161408515,5.3752,4725.4,4725.3,0.1056]
[1755161408912,4.922,4725.4,4725.3,0.1056]
[1755161409605,6.4733,4725.4,4724.8,0.0008]
[1755161409825,1.5513,4725.3,4725.1,0.1056]
[1755161410025,1.5513,4725.3,4724.7,0.1056]
[1755161410230,1.5513,4725.2,4724.7,0.1056]
[1755161410430,1.5513,4725.1,4724.7,0.1056]
[1755161410730,1.5513,4725.0,4724.5,0.001]
[1755161410931,1.5513,4724.9,4724.5,0.1074]
[1755161411128,1.5513,4724.8,4724.5,0.1074]
[1755161411331,1.23,4725.0,4724.5,0.1074]
[1755161411332,1.5513,4724.7,4724.5,0.1074]
[1755161411535,1.5513,4724.6,4724.5,0.0018]
[1755161412620,2.7813,4724.6,4724.5,0.0018]
[1755161413129,1.23,4724.6,4724.5,0.0018]
[1755161413317,1.23,4724.6,4724.5,2.22402609]
[1755161413513,1.23,4724.6,4724.5,3.84197393]
[1755161413717,4.0113,4724.6,4724.5,3.1074]
[1755161414031,4.0113,4724.6,4724.5,3.0018]
[1755161415252,3.69,4724.6,4724.5,3.0018]
[1755161415747,4.1432,4724.6,4724.5,3.0018]
[1755161416341,5.2413,4724.6,4724.5,3.1074]
[1755161416647,4.92,4724.6,4724.5,3.1074]
[1755161416848,4.92,4724.6,4724.5,5.53526609]
[1755161417909,6.15,4724.6,4724.5,5.53526609]
[1755161419051,6.15,4724.6,4724.5,3.41864]
[1755161419217,7.38,4724.6,4724.5,3.41864]
[1755161420648,8.61,4724.6,4724.5,3.41864]
[1755161421327,10.1613,4724.6,4724.5,3.1074]
[1755161422056,11.3913,4724.6,4724.5,3.1074]
[1755161423068,11.3913,4724.6,4724.5,3.0018]
[1755161423523,12.6213,4724.6,4724.5,3.0018]
[1755161425138,13.8513,4724.6,4724.5,3.0018]
[1755161426642,15.0813,4724.6,4724.5,3.0018]
[1755161427950,16.3113,4724.6,4724.5,3.0018]
[1755161428342,16.3113,4724.6,4724.5,0.0018]
[1755161428738,18.42788129,4724.6,4724.5,0.0018]
[1755161429128,16.3113,4724.6,4724.5,0.0018]
[1755161429327,15.99,4724.6,4724.5,0.0018]
[1755161430648,17.2192,4724.6,4724.5,0.0018]
[1755161431967,18.8984,4724.6,4724.5,0.0018]
[1755161432271,20.0298,4724.6,4724.5,0.0018]
[1755161433428,21.2598,4724.6,4724.5,0.0018]
[1755161435259,22.4898,4724.6,4724.5,0.0018]
[1755161436670,23.7198,4724.6,4724.5,0.0018]
[1755161437454,25.83638129,4724.6,4724.5,0.0018]
[1755161437953,27.06638129,4724.6,4724.5,0.0018]
[1755161439351,28.40398129,4724.6,4724.5,0.0018]
[1755161440840,27.5174,4724.6,4724.5,0.0018]
[1755161441041,29.63398129,4724.6,4724.5,0.0018]
[1755161441939,27.5174,4724.6,4724.5,0.0018]
[1755161442124,28.7474,4724.6,4724.5,0.0018]
[1755161442329,30.86398129,4724.6,4724.5,0.0018]
[1755161443733,32.09398129,4724.6,4724.5,0.0018]
[1755161444362,35.83741552,4724.6,4724.5,0.0018]
[1755161445167,37.06741552,4724.6,4724.5,0.0018]
[1755161446541,38.29741552,4724.6,4724.5,0.0018]
[1755161447839,39.52741552,4724.6,4724.5,0.0018]
[1755161448535,39.52741552,4724.6,4724.1,0.003]
[1755161448536,2.9992,4724.5,4724.1,0.003]
[1755161448846,2.1167605,4724.2,4724.1,0.003]
[1755161449045,3.6973605,4724.2,4724.1,0.003]
[1755161449245,4.9273605,4724.2,4724.1,0.003]
[1755161449573,5.0329605,4724.2,4724.1,0.003]
[1755161450561,5.0329605,4724.2,4724.1,0.0038]
[1755161450766,6.2629605,4724.2,4724.1,0.0038]
[1755161451062,5.1315605,4724.2,4724.1,0.0038]
[1755161451248,2.5656,4724.2,4724.1,0.0038]
[1755161451447,4.6823605,4724.2,4724.1,0.0038]
[1755161451662,5.1502605,4724.2,4724.1,0.0038]
[1755161452163,7.5861605,4724.2,4724.1,0.0038]
[1755161452744,3.7956,4724.2,4724.1,0.0038]
[1755161453367,5.0256,4724.2,4724.1,0.0038]
[1755161454141,4.92,4724.2,4724.1,1.5734]
[1755161454385,4.92,4724.2,4724.1,0.16214]
[1755161454668,4.92,4724.2,4724.1,0.0038]
[1755161454848,6.15,4724.2,4724.1,1.5734]
[1755161455049,6.15,4724.2,4724.1,0.0038]
[1755161456346,7.38,4724.2,4724.1,0.0038]
[1755161457795,11.1705605,4724.2,4724.1,0.0038]
[1755161457994,12.4005605,4724.2,4724.1,0.0038]
[1755161459372,13.6305605,4724.2,4724.1,0.0038]
[1755161459575,12.4246605,4724.2,4724.1,0.0038]
[1755161459885,11.9567605,4724.2,4724.1,0.0038]
[1755161460053,12.4246605,4724.2,4724.1,0.0038]
[1755161460597,9.9456,4724.2,4724.1,0.0038]
[1755161460779,11.1756,4724.2,4724.1,0.0038]
[1755161461649,11.1756,4724.2,4724.1,0.0048]
[1755161462392,12.4056,4724.2,4724.1,0.0048]
[1755161463660,13.6356,4724.2,4724.1,0.0048]
[1755161464076,15.7523605,4724.2,4724.1,0.0048]
[1755161465426,17.4502605,4724.2,4724.1,0.0048]
[1755161465584,18.6561605,4724.2,4724.1,0.0048]
[1755161466884,19.8861605,4724.2,4724.1,0.0048]
[1755161468301,21.1161605,4724.2,4724.1,0.0048]
[1755161469711,22.3461605,4724.2,4724.1,0.0048]
[1755161471075,23.5761605,4724.2,4724.1,0.0048]
[1755161472625,24.8061605,4724.2,4724.1,0.0048]
[1755161473817,26.0361605,4724.2,4724.1,0.0048]
[1755161475212,27.2661605,4724.2,4724.1,0.0048]
[1755161476615,28.4961605,4724.2,4724.1,0.0048]
[1755161477803,29.7261605,4724.2,4724.1,0.0048]
[1755161479232,30.9561605,4724.2,4724.1,0.0048]
[1755161480611,32.1853605,4724.2,4724.1,0.0048]
[1755161481992,33.4153605,4724.2,4724.1,0.0048]
[1755161482698,37.15879473,4724.2,4724.1,0.0048]
[1755161483298,38.38879473,4724.2,4724.1,0.0048]
[1755161484714,39.61879473,4724.2,4724.1,0.0048]
[1755161486001,40.84879473,4724.2,4724.1,0.0048]
[1755161486504,39.17499473,4724.2,4724.1,0.0048]
[1755161486814,39.60349473,4724.2,4724.1,0.0048]
[1755161487529,41.99729473,4724.2,4724.1,0.0048]
[1755161488829,43.22729473,4724.2,4724.1,0.0048]
[1755161490229,44.45729473,4724.2,4724.1,0.0048]
[1755161491613,45.68729473,4724.2,4724.1,0.0048]
[1755161492919,46.91729473,4724.2,4724.1,0.0048]
[1755161494407,48.14729473,4724.2,4724.1,0.0048]
[1755161494637,46.55499473,4724.2,4724.1,0.0048]
[1755161495825,48.21349473,4724.2,4724.1,0.0048]
[1755161496146,49.37729473,4724.2,4724.1,0.0048]
[1755161497349,50.60729473,4724.2,4724.1,0.0048]
[1755161498515,51.83729473,4724.2,4724.1,0.0048]
[1755161498917,50.24499473,4724.2,4724.1,0.0048]
[1755161499847,51.47499473,4724.2,4724.1,0.0048]
[1755161500048,51.90349473,4724.2,4724.1,0.0048]
[1755161500351,53.06729473,4724.2,4724.1,0.0048]
[1755161501223,54.29729473,4724.2,4724.1,0.0048]
[1755161501430,53.13349473,4724.2,4724.1,0.0048]
[1755161502623,53.93499473,4724.2,4724.1,0.0048]
[1755161503055,53.93419473,4724.2,4724.1,0.0048]
[1755161504144,55.16419473,4724.2,4724.1,0.0048]
[1755161505550,56.39419473,4724.2,4724.1,0.0048]
[1755161505746,56.39619473,4724.2,4724.1,0.0048]
[1755161506322,57.98849473,4724.2,4724.1,0.0048]
[1755161506722,59.21849473,4724.2,4724.1,0.0048]
[1755161508025,60.44849473,4724.2,4724.1,0.0048]
[1755161509556,57.9350605,4724.2,4724.1,0.0048]
[1755161510856,59.1650605,4724.2,4724.1,0.0048]
[1755161511337,57.5727605,4724.2,4724.1,0.0048]
[1755161512369,58.8027605,4724.2,4724.1,0.0048]
[1755161513572,60.0327605,4724.2,4724.1,0.0048]
[1755161514979,61.2627605,4724.2,4724.1,0.0048]
[1755161515154,61.46015782,4724.2,4724.1,0.0048]
[1755161515677,61.90635782,4724.2,4724.1,0.0048]
[1755161515843,60.87999732,4724.2,4724.1,0.0048]
[1755161516248,62.10999732,4724.2,4724.1,0.0048]
[1755161516850,64.22675782,4724.2,4724.1,0.0048]
[1755161520470,67.91675782,4724.2,4724.1,0.0048]
[1755161520676,65.79999732,4724.2,4724.1,0.0048]
[1755161520877,64.26339732,4724.2,4724.1,0.0048]
[1755161521354,64.70957016,4724.2,4724.1,0.0048]
[1755161521760,65.49337016,4724.2,4724.1,0.0048]
[1755161523176,66.72337016,4724.2,4724.1,0.0048]
[1755161523767,66.526,4724.2,4724.1,0.0048]
[1755161523959,70.26943423,4724.2,4724.1,0.0048]
[1755161524360,71.49943423,4724.2,4724.1,0.0048]
[1755161526082,72.72943423,4724.2,4724.1,0.0048]
[1755161527405,73.17563423,4724.2,4724.1,0.0048]
[1755161527606,75.49603423,4724.2,4724.1,0.0048]
[1755161528886,76.72603423,4724.2,4724.1,0.0048]
[1755161529273,75.63563423,4724.2,4724.1,0.0048]
[1755161529685,75.18943423,4724.2,4724.1,0.0048]
[1755161529889,75.38682784,4724.2,4724.1,0.0048]
[1755161530287,76.61682784,4724.2,4724.1,0.0048]
[1755161531889,77.84682784,4724.2,4724.1,0.0048]
[1755161533492,79.07682784,4724.2,4724.1,0.0048]
[1755161534074,78.87943423,4724.2,4724.1,0.0048]
[1755161534877,80.10943423,4724.2,4724.1,0.0048]
[1755161535280,80.10943423,4724.2,4724.1,1.4828]
[1755161536225,81.33943423,4724.2,4724.1,1.4828]
[1755161537735,82.56943423,4724.2,4724.1,1.4828]
[1755161537899,82.56943423,4724.2,4724.1,0.0048]
[1755161538998,83.79943423,4724.2,4724.1,0.0048]
[1755161540124,80.056,4724.2,4724.1,0.0048]
[1755161540325,81.286,4724.2,4724.1,0.0048]
[1755161540523,81.2852,4724.2,4724.1,0.0048]
[1755161541601,82.5152,4724.2,4724.1,0.0048]
[1755161542999,83.7452,4724.2,4724.1,0.0048]
[1755161544529,84.9752,4724.2,4724.1,0.0048]
[1755161546008,86.2052,4724.2,4724.1,0.0048]
[1755161546407,87.8327,4724.2,4724.1,0.0048]
[1755161547329,89.0627,4724.2,4724.1,0.0048]
[1755161548609,90.2927,4724.2,4724.1,0.0048]
[1755161549904,91.5227,4724.2,4724.1,0.0048]
[1755161551299,92.7527,4724.2,4724.1,0.0048]
[1755161552748,93.9827,4724.2,4724.1,0.0048]
[1755161554238,95.2127,4724.2,4724.1,0.0048]
[1755161555624,96.4427,4724.2,4724.1,0.0048]
[1755161555810,98.5594605,4724.2,4724.1,0.0048]
[1755161556538,100.18613423,4724.2,4724.1,0.0048]
[1755161557111,103.53289473,4724.2,4724.1,0.0048]
[1755161557524,101.41613423,4724.2,4724.1,0.0048]
[1755161558241,97.6727,4724.2,4724.1,0.0048]
[1755161558549,98.9027,4724.2,4724.1,0.0048]
[1755161558923,101.0194605,4724.2,4724.1,0.0048]
[1755161559945,102.2494605,4724.2,4724.1,0.0048]
[1755161560518,100.1327,4724.2,4724.1,0.0048]
[1755161561318,101.3627,4724.2,4724.1,0.0048]
[1755161562946,102.5919,4724.2,4724.1,0.0048]
[1755161563446,104.7086605,4724.2,4724.1,0.0048]
[1755161564345,105.9386605,4724.2,4724.1,0.0048]
[1755161564559,106.4899946,4724.2,4724.1,0.0048]
[1755161566061,107.7199946,4724.2,4724.1,0.0048]
[1755161567570,108.9499946,4724.2,4724.1,0.0048]
[1755161569061,110.1799946,4724.2,4724.1,0.0048]
[1755161570268,111.4099946,4724.2,4724.1,0.0048]
[1755161571768,112.6399946,4724.2,4724.1,0.0048]
[1755161573070,113.8699946,4724.2,4724.1,0.0048]
[1755161574165,114.32376119,4724.2,4724.1,0.0048]
[1755161574372,115.55376119,4724.2,4724.1,0.0048]
[1755161574844,118.55376119,4724.2,4724.1,0.0048]
[1755161575039,118.75074622,4724.2,4724.1,0.0048]
[1755161575871,119.98074622,4724.2,4724.1,0.0048]
[1755161576258,120.52908472,4724.2,4724.1,0.0048]
[1755161576846,120.52909286,4724.2,4724.1,0.0048]
[1755161577280,121.75909286,4724.2,4724.1,0.0048]
[1755161578578,122.98909286,4724.2,4724.1,0.0048]
[1755161579972,124.21909286,4724.2,4724.1,0.0048]
[1755161580187,127.96252709,4724.2,4724.1,0.0048]
[1755161580878,126.33502709,4724.2,4724.1,0.0048]
[1755161581063,126.77492709,4724.2,4724.1,0.0048]
[1755161581266,128.00492709,4724.2,4724.1,0.0048]
[1755161581896,129.06552709,4724.2,4724.1,0.0048]
[1755161582560,130.29552709,4724.2,4724.1,0.0048]
[1755161583787,123.67826659,4724.2,4724.1,0.0048]
[1755161583954,124.4545,4724.2,4724.1,0.0048]
[1755161584150,123.9031659,4724.2,4724.1,0.0048]
[1755161584796,123.90306416,4724.2,4724.1,0.0048]
[1755161584997,123.90226416,4724.2,4724.1,0.0048]
[1755161585368,125.13226416,4724.2,4724.1,0.0048]
[1755161585790,125.13226416,4724.2,4724.1,0.4056]
[1755161585995,125.13226416,4724.2,4724.1,0.0048]
[1755161586207,124.93537273,4724.2,4724.1,1.4037]
[1755161586508,121.1919385,4724.2,4724.1,1.4037]
[1755161586715,122.4219385,4724.2,4724.1,1.4037]
[1755161587095,122.3163385,4724.2,4721.4,3.0]
[1755161587267,122.3163385,4724.2,4723.1,1.4037]
[1755161587268,122.60501365,4724.2,4723.1,1.4037]
[1755161587601,122.3163385,4724.2,4723.2,0.4008]
[1755161587787,122.3163385,4724.2,4723.2,1.4037]
[1755161587996,123.5463385,4724.2,4723.2,1.4037]
[1755161588238,123.5463385,4724.2,4723.2,1.0029]
[1755161588441,123.5463385,4724.2,4723.3,0.4008]
[1755161589356,124.7763385,4724.2,4723.3,0.3508]
[1755161590243,124.7763385,4724.2,4722.7,1.0029]
[1755161590531,2.75363108,4724.1,4722.7,1.0029]
[1755161590733,2.55674019,4724.1,4722.7,1.0037]
[1755161591137,2.11686126,4724.0,4722.7,0.0008]
[1755161591350,0.19688775,4724.0,4722.8,1.3537]
[1755161591509,2.11685973,4724.0,4722.8,1.3537]
[1755161591837,1.5005,4723.9,4722.8,1.3537]
[1755161592041,3.6174243,4723.9,4722.7,0.0008]
[1755161592251,3.6174243,4723.9,4722.5,1.3537]
[1755161592252,0.63678775,4723.8,4722.5,1.3537]
[1755161592408,2.55687979,4723.8,4722.5,1.3537]
[1755161592608,1.28735138,4723.7,4722.5,1.3537]
[1755161592934,1.28735138,4723.7,4722.5,0.9529]
[1755161593230,1.09046363,4723.7,4722.6,0.3518]
[1755161593435,2.32046363,4723.7,4722.6,0.3518]
[1755161593937,1.23,4723.7,4722.6,0.3518]
[1755161594706,2.46,4723.7,4722.7,0.9529]
[1755161594907,2.46,4723.7,4722.8,0.3508]
[1755161595424,2.46,4723.7,4722.9,0.9529]
[1755161595607,2.46,4723.7,4723.0,0.3508]
[1755161595808,2.46,4723.7,4723.0,0.47627]
[1755161596207,3.69,4723.7,4723.1,0.3508]
[1755161597157,0.1056,4723.3,4723.1,0.3508]
[1755161597318,0.1056,4723.3,4723.2,0.3508]
[1755161597516,1.3356,4723.3,4723.2,0.3508]
[1755161597716,1.3356,4723.3,4723.2,1.2537]
[1755161598823,2.5656,4723.3,4723.2,1.2537]
[1755161599544,2.5656,4723.3,4722.7,0.635283]
[1755161599707,2.5656,4723.3,4722.8,0.3008]
[1755161599914,2.5656,4723.3,4722.9,0.1946583]
[1755161600214,3.7956,4723.3,4722.9,1.0975583]
[1755161600913,3.7956,4723.3,4722.9,1.0983583]
[1755161601748,3.7956,4723.3,4722.9,1.3991583]
[1755161601917,5.0256,4723.3,4722.9,1.3991583]
[1755161602714,5.0256,4723.3,4723.0,1.41780413]
[1755161602910,5.0256,4723.3,4723.1,1.2037]
[1755161603211,4.92,4723.3,4723.2,1.2037]
[1755161603447,6.15,4723.3,4723.2,1.2037]
[1755161605152,7.38,4723.3,4723.2,1.2037]
[1755161605935,7.38,4723.3,4723.0,0.21410413]
[1755161606133,7.38,4723.3,4723.2,1.166]
[1755161606536,8.61,4723.3,4723.0,0.84932413]
[1755161606740,8.61,4723.3,4722.9,0.1064]
[1755161607044,8.61,4723.3,4722.9,0.741638]
[1755161608052,9.84,4723.3,4722.9,0.741638]
[1755161609218,9.84,4723.3,4723.0,1.166]
[1755161609418,11.07,4723.3,4723.0,1.166]
[1755161610247,11.07,4723.3,4723.0,1.3568638]
[1755161610952,12.3,4723.3,4723.0,0.1908638]
[1755161611154,12.3,4723.3,4723.0,0.1916638]
[1755161611651,12.3,4723.3,4723.1,1.18717253]
[1755161611850,12.3,4723.3,4723.2,1.2716]
[1755161612150,12.3,4723.3,4723.2,1.48145018]
[1755161612357,13.53,4723.3,4723.2,1.48145018]
[1755161613352,13.53,4723.3,4723.2,2.11663118]
[1755161613854,14.76,4723.3,4723.2,2.11663118]
[1755161614056,14.76,4723.3,4723.2,0.95063118]
[1755161615254,15.99,4723.3,4723.2,0.95063118]
[1755161616862,17.22,4723.3,4723.2,4.02398967]
[1755161617558,17.22,4723.3,4723.2,7.02398967]
[1755161618436,18.45,4723.3,4723.2,7.02398967]
[1755161618773,13.32279522,4723.3,4723.2,7.02398967]
[1755161619268,3.692,4723.7,4723.3,4.10353856]
[1755161619433,3.692,4723.7,4723.6,33.05196268]
[1755161619634,3.692,4723.7,4723.6,34.30966268]
[1755161619854,4.922,4723.7,4723.6,34.30966268]
[1755161620055,4.922,4723.7,4723.6,36.41078993]
[1755161620563,4.9212,4723.7,4723.6,36.41078993]
[1755161621231,6.1512,4723.7,4723.6,36.41078993]
[1755161621432,6.1512,4723.7,4723.6,36.41158993]
[1755161622767,7.3812,4723.7,4723.6,36.41158993]
[1755161624280,8.6112,4723.7,4723.6,36.41158993]
[1755161625480,9.8412,4723.7,4723.6,36.41158993]
[1755161626456,1.23,4724.0,4723.9,2.11689493]
[1755161626651,1.23,4724.0,4723.9,6.27503506]
[1755161626856,1.23,4724.0,4723.9,7.53273506]
[1755161627390,1.23,4724.0,4723.9,8.16761406]
[1755161628085,2.46,4724.0,4723.9,8.16761406]
[1755161629892,3.69,4724.0,4723.9,8.16761406]
[1755161630188,3.69,4724.0,4723.9,7.01551406]
[1755161631052,4.92,4724.0,4723.9,7.01551406]
[1755161631887,4.92,4724.0,4723.9,7.01631406]
[1755161632377,6.15,4724.0,4723.9,7.01631406]
[1755161632913,6.15,4724.0,4723.9,7.31711406]
[1755161633491,6.15,4724.0,4723.9,7.01631406]
[1755161633866,7.38,4724.0,4723.9,7.01631406]
[1755161635256,8.61,4724.0,4723.9,7.01631406]
[1755161635459,10.0847,4724.0,4723.9,5.85817393]
[1755161635681,10.0847,4724.0,4723.9,2.85817393]
[1755161635891,10.0847,4724.0,4723.9,0.741279]
[1755161636501,10.0847,4724.0,4723.9,0.1064]
[1755161636686,11.3147,4724.0,4723.9,0.1064]
[1755161637506,11.3147,4724.0,4723.9,3.1064]
[1755161637705,11.3147,4724.0,4723.9,0.1064]
[1755161638194,12.5447,4724.0,4723.9,0.1064]
[1755161639510,13.7747,4724.0,4723.9,0.1064]
[1755161639819,13.7747,4724.0,4723.9,0.0008]
[1755161640606,13.7747,4724.0,4723.7,0.1056]
[1755161640820,1.4747,4723.9,4723.7,0.1056]
[1755161641214,1.4747,4723.8,4723.7,0.1056]
[1755161642327,1.23,4723.8,4723.7,2.45632067]
[1755161642525,1.2292,4723.8,4723.7,2.45632067]
[1755161642730,1.6647,4723.8,4723.7,0.33933611]
[1755161643021,2.7039,4723.8,4723.7,2.45632067]
[1755161643222,2.7039,4723.8,4723.7,0.33933611]
[1755161643588,3.9339,4723.8,4723.7,0.33933611]
[1755161643830,3.9339,4723.8,4723.7,0.1064]
[1755161644202,3.9339,4723.8,4723.7,0.0008]
[1755161644419,4.22257515,4723.8,4723.7,0.0008]
[1755161644935,5.45257515,4723.8,4723.6,0.001]
[1755161645243,1.5803,4723.7,4723.6,0.001]
[1755161645541,3.48911751,4723.7,4723.6,0.001]
[1755161645960,5.60610207,4723.7,4723.6,0.001]
[1755161646321,6.83610207,4723.7,4723.6,0.001]
[1755161647456,4.71911751,4723.7,4723.6,0.001]
[1755161647953,5.94911751,4723.7,4723.6,0.001]
[1755161648330,8.06610207,4723.7,4723.6,0.001]
[1755161648947,8.35477722,4723.7,4723.6,0.001]
[1755161649260,6.23779266,4723.7,4723.6,0.001]
[1755161649423,7.46779266,4723.7,4723.6,0.001]
[1755161649626,7.17911751,4723.7,4723.6,0.001]
[1755161650529,7.17911751,4723.7,4723.6,0.0018]
[1755161650950,8.40911751,4723.7,4723.6,0.0018]
[1755161652455,9.63911751,4723.7,4723.6,0.0018]
[1755161653878,9.39441751,4723.7,4723.6,0.0018]
[1755161654092,7.4856,4723.7,4723.6,0.0018]
[1755161654243,7.4856,4723.7,4723.6,2.11882938]
[1755161654774,7.38,4723.7,4723.6,2.11882938]
[1755161654948,7.38,4723.7,4723.6,0.0018]
[1755161655145,8.61,4723.7,4723.6,2.11882938]
[1755161655542,8.61,4723.7,4723.6,2.91650356]
[1755161656183,8.61,4723.7,4723.6,4.22780356]
[1755161656597,9.84,4723.7,4723.6,4.22780356]
[1755161657158,9.84,4723.7,4723.6,7.22780356]
[1755161657982,11.07,4723.7,4723.6,7.22780356]
[1755161659398,12.3,4723.7,4723.6,7.22780356]
[1755161660096,12.3,4723.7,4723.6,7.33340356]
[1755161660785,12.3,4723.7,4723.6,6.02210356]
[1755161660786,13.53,4723.7,4723.6,6.02210356]
[1755161662110,14.76,4723.7,4723.6,6.02210356]
[1755161663594,15.99,4723.7,4723.6,6.02210356]
[1755161664617,17.5704,4723.7,4723.6,3.02210356]
[1755161664937,18.8004,4723.7,4723.6,2.22442938]
[1755161665989,17.2192,4723.7,4723.6,2.22442938]
[1755161666195,18.3441,4723.7,4723.6,0.1074]
[1755161666420,20.0304,4723.7,4723.6,0.1074]
[1755161667697,21.2604,4723.7,4723.6,0.1074]
[1755161668510,21.2604,4723.7,4723.6,0.0018]
[1755161669132,22.4904,4723.7,4723.6,0.0018]
[1755161669553,23.7204,4723.7,4723.6,0.0018]
[1755161670837,23.3692,4723.7,4723.6,0.0018]
[1755161671248,23.8255,4723.7,4723.6,0.0018]
[1755161672357,24.5992,4723.7,4723.6,2.11882938]
[1755161672561,24.5992,4723.7,4723.6,5.22442938]
[1755161672853,24.5992,4723.7,4723.6,5.85954538]
[1755161673726,25.8292,4723.7,4723.6,7.13604538]
[1755161674252,25.8292,4723.7,4723.6,5.85954538]
[1755161675127,27.0592,4723.7,4723.6,5.85954538]
[1755161675437,27.0592,4723.7,4723.6,6.68728941]
[1755161675637,27.0592,4723.7,4723.6,7.96378941]
[1755161675850,27.0592,4723.7,4723.6,7.32867341]
[1755161676070,27.0592,4723.7,4723.6,7.96370141]
[1755161676568,28.2892,4723.7,4723.6,7.96370141]
[1755161677950,29.5192,4723.7,4723.6,7.96370141]
[1755161679636,30.7492,4723.7,4723.6,7.96370141]